fUST/lending_fUST_20250407
["ID","MTS","AMOUNT","RATE_DAILY","PERIOD"]
[357386516,1744033838895,-769.231,0.00038,120]
[357386517,1744033838904,-662.52149842,0.00038348,14]
[357386518,1744033838913,-1480.61827213,0.00038938,2]
[357386519,1744033838923,-460.19449504,0.0003894,5]
[357386520,1744033838932,-500.0,0.0003894,5]
[357386521,1744033838941,-210.43057469,0.0003894,5]
[357386522,1744033838951,-2912.72642994,0.00038989,3]
[357386523,1744033838961,-4979.7,0.00038999,2]
[357386525,1744033838971,-662.52149842,0.00039038,14]
[357386526,1744033838982,-1476.00906088,0.00039166,2]
[357386527,1744033838992,-541.0,0.00039205,2]
[357386528,1744033839001,-2197.345,0.00039205,2]
[357386529,1744033839011,-662.52149842,0.00039728,15]
[357386530,1744033839026,-10000.0,0.000398,120]
[357386531,1744033839036,-500.0,0.00039873,5]
[357386532,1744033839045,-500.0,0.00039873,2]
[357386534,1744033839054,-500.0,0.00039873,5]
[357386536,1744033839064,-500.0,0.00039873,5]
[357386538,1744033839074,-500.0,0.00039873,5]
[357386539,1744033839083,-228.106,0.00039873,56]
[357386541,1744033839093,-200.0,0.00039876,2]
[357386542,1744033839103,-500.0,0.00039889,31]
[357386543,1744033839112,-330.23335777,0.00039889,31]
[357386544,1744033839122,-326.19787568,0.00039889,31]
[357386545,1744033839131,-783.73948285,0.0003989,3]
[357386546,1744033839141,-23301.8114395,0.0003989,3]
[357386547,1744033839151,-188.97365901,0.00039899,2]
[357386548,1744033839161,-370000.0,0.000399,2]
[357386549,1744033839170,-4979.7,0.00039999,2]
[357386550,1744033839180,-1000.0,0.0004,120]
[357386551,1744033839190,-1515.0,0.0004,2]
[357386552,1744033839200,-1192.0,0.0004,2]
[357386553,1744033839210,-151.0,0.000403,11]
[357386554,1744033839220,-662.52149842,0.00040417,15]
[357386555,1744033839232,-500.0,0.00040552,5]
[357386556,1744033839245,-1000.0,0.00040552,5]
[357386557,1744033839268,-151.0,0.000407,15]
[357386558,1744033839282,-3494.81146509,0.00040862,120]
[357386559,1744033839293,-1476.00906088,0.00040884,28]
[357386560,1744033839305,-2912.72642994,0.00040904,3]
[357386561,1744033839316,-4979.7,0.00040914,2]
[357386562,1744033839326,-4979.7,0.00040914,2]
[357386563,1744033839336,-4979.7,0.00040914,2]
[357386564,1744033839346,-4979.7,0.00040914,2]
[357386565,1744033839356,-4979.7,0.00040914,2]
[357386566,1744033839366,-2912.72642994,0.00040914,3]
[357386567,1744033839375,-160.0,0.00040923,30]
[357386568,1744033839385,-4979.7,0.00040924,2]
[357386569,1744033839396,-4979.7,0.00040924,2]
[357386570,1744033839407,-4979.7,0.00040924,2]
[357386571,1744033839416,-4979.7,0.00040924,2]
[357386572,1744033839426,-4979.7,0.00040924,2]
[357386573,1744033839436,-4979.7,0.00040924,2]
[357386574,1744033839446,-4979.7,0.00040924,2]
[357386575,1744033839455,-4979.7,0.00040924,2]
[357386576,1744033839466,-4979.7,0.00040924,2]
[357386577,1744033839475,-4979.7,0.00040924,2]
[357386578,1744033839485,-4979.7,0.00040924,2]
[357386579,1744033839495,-4979.7,0.00040924,2]
[357386580,1744033839504,-4979.7,0.00040924,2]
[357386581,1744033839514,-4979.7,0.00040924,2]
[357386582,1744033839529,-4979.7,0.00040924,2]
[357386583,1744033839539,-4300.30722739,0.00040924,2]
[357386584,1744033839553,-679.59539877,0.00040924,2]
[357386585,1744033839563,-500.0,0.00040973,5]
[357386586,1744033839573,-500.0,0.00040973,5]
[357386587,1744033839583,-2000.0,0.0004109,60]
[357386588,1744033839592,-151.0,0.000411,19]
[357386589,1744033839602,-662.52149842,0.00041107,16]
[357386590,1744033839612,-483.661152,0.00041211,120]
[357386591,1744033839623,-207.4,0.00041245,2]
[357386592,1744033839633,-2912.72642994,0.0004126,3]
[357386593,1744033839644,-1401.0,0.0004127,120]
[357386594,1744033839654,-1401.0,0.0004128,120]
[357386595,1744033839663,-1401.0,0.0004129,120]
[357386596,1744033839676,-2000.0,0.000413,120]
[357386597,1744033839686,-152.21,0.000414,31]
[357386598,1744033839697,-152.21,0.000414,31]
[357386599,1744033839707,-152.21,0.000414,31]
[357386600,1744033839718,-152.21,0.000414,31]
[357386601,1744033839728,-152.21,0.000414,31]
[357386602,1744033839738,-152.21,0.000414,31]
[357386603,1744033839748,-152.21,0.000414,31]
[357386604,1744033839758,-152.21,0.000414,31]
[357386605,1744033839772,-152.21,0.000414,31]
[357386606,1744033839783,-152.21,0.000414,31]
[357386607,1744033839792,-152.21,0.000414,31]
[357386608,1744033839801,-152.21,0.000414,31]
[357386609,1744033839811,-152.21,0.000414,31]
[357386610,1744033839821,-152.21,0.000414,31]
[357386611,1744033839831,-152.21,0.000414,31]
[357386612,1744033839841,-152.21,0.000414,31]
[357386613,1744033839851,-152.21,0.000414,31]
[357386614,1744033839861,-152.21,0.000414,31]
[357386615,1744033839871,-152.21,0.000414,31]
[357386616,1744033839882,-152.21,0.000414,31]
[357386617,1744033839892,-152.21,0.000414,31]
[357386618,1744033839902,-152.21,0.000414,31]
[357386619,1744033839912,-151.0,0.000415,15]
[357386620,1744033839922,-313.2348916,0.00041572,30]
[357386621,1744033839932,-564.0809511,0.00041572,30]
[357386622,1744033839942,-113.90062081,0.00041572,30]
[357386623,1744033839954,-450.18033029,0.00041572,30]
[357386624,1744033839964,-564.0809511,0.00041572,30]
[357386625,1744033839974,-564.0809511,0.00041572,30]
[357386626,1744033839984,-153.9698327,0.00041603,30]
[357386627,1744033839994,-153.0,0.00041603,30]
[357386628,1744033840004,-153.0,0.00041603,30]
[357386629,1744033840015,-254.382191,0.00041743,60]
[357386630,1744033840028,-662.52149842,0.00041797,16]
[357386631,1744033840038,-3819.46639825,0.000418,48]
[357386632,1744033840048,-1617.88199951,0.000418,30]
[357386652,1744033840865,-160.0,0.00039123,2]
[357386653,1744033840876,-382.11800049,0.000418,30]
[357386655,1744033840887,-5818.38602786,0.00041864,10]
[357386656,1744033840897,-2912.72642994,0.00041872,3]
[357386658,1744033840907,-160.0,0.00041873,10]
[357386660,1744033840917,-500.0,0.00041873,10]
[357386662,1744033840928,-12500.0,0.00041873,10]
[357386663,1744033840938,-12500.0,0.00041882,10]
[357386665,1744033840948,-12500.0,0.00041891,10]
[357386666,1744033840958,-1932.51675071,0.00041898,3]
[357386673,1744033841038,-980.20967923,0.00041898,3]
[357386674,1744033841048,-538.29032077,0.00041899,10]
[357386964,1744033844245,-251.10311912,0.00039205,2]
[357387038,1744033846945,-38.89688088,0.00039205,2]
[357387040,1744033846955,-728.57117286,0.00041899,10]
[357387438,1744033853185,-164.9835011,0.00041899,10]
[357387560,1744033857314,-164.9835011,0.00040441,6]
[357387561,1744033857933,867.5869141,0.0003,10]
[357387564,1744033869199,-196.2234246,0.00041897,10]
[357387565,1744033874495,164.9835011,0.0003,10]
[357387566,1744033885381,-216.4552616,0.00041572,30]
[357387567,1744033893850,412.6786862,0.0003,10]
[357387577,1744034008291,188.0,0.0003,10]
[357387579,1744034069016,-151.0,0.00030743,2]
[357387580,1744034076812,-153.68,0.00037,14]
[357387581,1744034086700,188.0,0.0003,10]
[357387582,1744034088265,153.68,0.0003,10]
[357387583,1744034091454,-153.68,0.000359,12]
[357387584,1744034115457,-346.32,0.00037,14]
[357387585,1744034119184,-67.07278151,0.00030743,2]
[357387586,1744034119216,-93.92721849,0.00034899,2]
[357387592,1744034592208,-60.32706479,0.00034899,2]
[357387593,1744034592231,-248.04510823,0.0003589,2]
[357387594,1744034601284,173.156209,0.00013699,2]
[357387595,1744034613974,-152.00274093,0.0003589,2]
[357387596,1744034619054,152.00274093,0.0003,10]
[357387597,1744034629665,-35.24718684,0.0003589,2]
[357387598,1744034629690,-351.0,0.00036094,2]
[357387599,1744034629714,-88.33851316,0.00036141,2]
[357387600,1744034642354,-227.91,0.00037,14]
[357387601,1744034642386,-19.6772,0.000379,31]
[357387654,1744035031795,-179.0240392,0.00034963,2]
[357387655,1744035031811,-300.0,0.00034998,2]
[357387656,1744035031821,-20.9759608,0.00034999,2]
[357387657,1744035031833,-2196.8082067,0.00034999,2]
[357387658,1744035031846,-699.856,0.00034999,2]
[357387659,1744035031859,-618.73387421,0.00034999,2]
[357387781,1744035037917,-1000.0,0.00034999,2]
[357387794,1744035038031,-0.03595829,0.00034999,2]
[357387796,1744035038041,-4536.41,0.00034999,2]
[357387798,1744035038051,-4536.41,0.00034999,2]
[357387800,1744035038065,-4536.41,0.00034999,2]
[357387802,1744035038075,-436.55833228,0.000359,12]
[357387804,1744035038085,-436.55833228,0.00036521,13]
[357387806,1744035038095,-209.7892065,0.00036817,2]
[357387808,1744035038104,-283.3471984,0.00036855,2]
[357387810,1744035038114,-1291.5079283,0.00036906,2]
[357387812,1744035038124,-95973.25740101,0.00037,8]
[357387814,1744035038135,-82088.7164175,0.00037,8]
[357387819,1744035038177,-296.82958914,0.00037,8]
[357387855,1744035040089,-739.69813278,0.00037,8]
[357387856,1744035040273,-52.56922716,0.00037,8]
[357387857,1744035041803,-300.0,0.00037,8]
[357387873,1744035043781,-194350.54538593,0.00037,8]
[357387874,1744035043791,-12527.9349248,0.00037003,2]
[357387875,1744035043802,-500.0,0.00037005,2]
[357387876,1744035043813,-500.0,0.00037005,15]
[357387878,1744035043828,-500.0,0.00037005,15]
[357387880,1744035043839,-500.0,0.00037005,15]
[357387883,1744035043849,-500.0,0.00037005,2]
[357387884,1744035043861,-500.0,0.00037005,15]
[357387885,1744035043872,-500.0,0.00037005,15]
[357387887,1744035043882,-259.8,0.00037005,15]
[357387889,1744035043891,-500.0,0.00037005,2]
[357387891,1744035043902,-500.0,0.00037005,15]
[357387893,1744035043911,-500.0,0.00037005,15]
[357387897,1744035043922,-500.0,0.00037005,15]
[357387900,1744035043931,-326.883,0.00037005,15]
[357387903,1744035043941,-500.0,0.00037005,15]
[357387906,1744035043951,-15354.38114371,0.00037006,2]
[357387909,1744035043962,-5217.0905405,0.00037007,2]
[357387912,1744035043973,-581.0935729,0.00037019,2]
[357387914,1744035043983,-436.55833228,0.00037141,13]
[357387917,1744035043993,-436.55833228,0.00037762,14]
[357387920,1744035044003,-154.72,0.000379,31]
[357387922,1744035044013,-154.72,0.000379,31]
[357387924,1744035044025,-154.72,0.000379,31]
[357387926,1744035044035,-154.72,0.000379,31]
[357387927,1744035044044,-154.72,0.000379,31]
[357387928,1744035044055,-154.72,0.000379,31]
[357387929,1744035044064,-1291.50792827,0.00038347,2]
[357387930,1744035044077,-436.55833228,0.00038383,14]
[357387931,1744035044087,-4536.41,0.00038998,2]
[357387932,1744035044097,-545.0,0.00039,20]
[357387933,1744035044108,-436.55833228,0.00039003,14]
[357387934,1744035044119,-150.301,0.00039205,2]
[357387935,1744035044129,-150.289,0.00039205,2]
[357387936,1744035044140,-150.421,0.00039205,2]
[357387937,1744035044151,-547.912,0.00039205,2]
[357387938,1744035044161,-1003.0,0.00039205,2]
[357387939,1744035044171,-2265.0,0.00039205,2]
[357387940,1744035044180,-436.55833228,0.00039624,15]
[357387941,1744035044191,-1291.50792827,0.00039788,2]
[357387942,1744035044200,-310.349,0.00039799,56]
[357387943,1744035044212,-4536.41,0.00039862,2]
[357387944,1744035044223,-500.0,0.00039873,2]
[357387945,1744035044233,-500.0,0.00039873,5]
[357387946,1744035044243,-500.0,0.00039873,5]
[357387947,1744035044253,-500.0,0.00039873,5]
[357387948,1744035044264,-500.0,0.00039873,5]
[357387949,1744035044274,-500.0,0.00039873,5]
[357387950,1744035044284,-500.0,0.00039873,5]
[357387951,1744035044295,-151.0,0.00039875,2]
[357387952,1744035044305,-2330.18114394,0.00039889,3]
[357387953,1744035044318,-4536.41,0.00039889,2]
[357387954,1744035044329,-581.16335044,0.00039898,31]
[357387955,1744035044340,-228.33851297,0.00039898,31]
[357387957,1744035044351,-4536.41,0.00039899,2]
[357387958,1744035044361,-4536.41,0.00039899,2]
[357387959,1744035044371,-4536.41,0.00039899,2]
[357387960,1744035044381,-4536.41,0.00039899,2]
[357387961,1744035044392,-4536.41,0.00039899,2]
[357387962,1744035044403,-4536.41,0.00039899,2]
[357387963,1744035044413,-4536.41,0.00039899,2]
[357387964,1744035044423,-4536.41,0.00039899,2]
[357387965,1744035044432,-4536.41,0.00039899,2]
[357387966,1744035044442,-4536.41,0.00039899,2]
[357387967,1744035044452,-4536.41,0.00039899,2]
[357387968,1744035044461,-4536.41,0.00039899,2]
[357387970,1744035044471,-4536.41,0.00039899,2]
[357387972,1744035044481,-4536.41,0.00039899,2]
[357387974,1744035044490,-4536.41,0.00039899,2]
[357387976,1744035044499,-4536.41,0.00039899,2]
[357387978,1744035044510,-4536.57722739,0.00039899,2]
[357387980,1744035044519,-500.0,0.0004,25]
[357387982,1744035044529,-500.0,0.0004,30]
[357387984,1744035044538,-500.0,0.0004,30]
[357387986,1744035044548,-500.0,0.0004,15]
[357387988,1744035044558,-500.0,0.0004,12]
[357387990,1744035044572,-500.0,0.0004,40]
[357387992,1744035044582,-500.0,0.0004,22]
[357387994,1744035044592,-500.0,0.0004,120]
[357387995,1744035044602,-18216.4542149,0.0004,60]
[357387996,1744035044612,-436.55833228,0.00040245,15]
[357387997,1744035044622,-2110.0164989,0.00040281,6]
[357387998,1744035044632,-778.78715169,0.00040594,2]
[357387999,1744035044642,-1165.09057197,0.0004074,3]
[357388000,1744035044653,-921.0545545,0.0004075,30]
[357388001,1744035044666,-644.1088131,0.0004075,30]
[357388002,1744035044676,-564.0809511,0.00040781,30]
[357388003,1744035044686,-564.0809511,0.00040781,30]
[357388004,1744035044695,-564.0809511,0.00040781,30]
[357388005,1744035044705,-564.0809511,0.00040781,30]
[357388006,1744035044715,-1127.9539451,0.00040781,30]
[357388007,1744035044725,-1242.062523,0.00040781,30]
[357388008,1744035044736,-436.55833228,0.00040866,16]
[357388009,1744035044747,-160.0,0.00040882,2]
[357388010,1744035044757,-7037.99941891,0.0004099,2]
[357388011,1744035044767,-173.91362318,0.00041,31]
[357388012,1744035044777,-3660.0,0.00041,7]
[357388013,1744035044788,-2708.48111111,0.00041,120]
[357388014,1744035044798,-3484.07270454,0.00041095,7]
[357388015,1744035044807,-3484.07270454,0.00041095,7]
[357388016,1744035044820,-719.959261,0.00041123,30]
[357388017,1744035044831,-435.295036,0.00041211,120]
[357388018,1744035044841,-1291.50792827,0.00041229,28]
[357388019,1744035044851,-154.72,0.000414,31]
[357388020,1744035044862,-154.72,0.000414,31]
[357388021,1744035044872,-154.72,0.000414,31]
[357388022,1744035044882,-154.72,0.000414,31]
[357388023,1744035044892,-154.72,0.000414,31]
[357388024,1744035044902,-154.72,0.000414,31]
[357388025,1744035044912,-154.72,0.000414,31]
[357388026,1744035044921,-154.72,0.000414,31]
[357388027,1744035044931,-154.72,0.000414,31]
[357388028,1744035044941,-154.72,0.000414,31]
[357388029,1744035044950,-154.72,0.000414,31]
[357388030,1744035044960,-154.72,0.000414,31]
[357388031,1744035044970,-436.55833228,0.00041486,16]
[357388032,1744035044980,-3000.0,0.000415,120]
[357388033,1744035044990,-957.56034139,0.00041503,2]
[357388034,1744035045000,-156.6174458,0.00041572,30]
[357388035,1744035045010,-564.0809511,0.00041603,30]
[357388036,1744035045020,-564.0809511,0.00041603,30]
[357388037,1744035045029,-564.0809511,0.00041603,30]
[357388038,1744035045039,-564.0809511,0.00041603,30]
[357388039,1744035045048,-564.0809511,0.00041603,30]
[357388040,1744035045058,-564.0809511,0.00041603,30]
[357388041,1744035045073,-464.5409924,0.00041603,30]
[357388042,1744035045083,-175.45227962,0.000418,21]
[357388043,1744035045094,-1165.09057197,0.00041898,3]
[357388044,1744035045104,-762.5,0.00041904,60]
[357388045,1744035045115,-12500.0,0.00041908,10]
[357388046,1744035045125,-164.9835011,0.00041917,10]
[357388047,1744035045135,-12500.0,0.00041917,10]
[357388048,1744035045145,-11068.15500527,0.00041917,10]
[357388049,1744035045156,-2000.0,0.00042,120]
[357388050,1744035045167,-151.0,0.00042,16]
[357388051,1744035045178,-188.0,0.00042,60]
[357388052,1744035045188,-189.29532026,0.00042,30]
[357388053,1744035045198,-1192.0,0.00042,2]
[357388054,1744035045208,-1515.0,0.00042,2]
[357388055,1744035045218,-436.55833228,0.00042107,16]
[357388056,1744035045228,-543.0,0.00042205,2]
[357388057,1744035045237,-1003.0,0.00042205,2]
[357388058,1744035045247,-2255.0,0.00042205,2]
[357388059,1744035045258,-980.0,0.00042294,120]
[357388060,1744035045269,-200.0,0.00042299,2]
[357388062,1744035045279,-634.0,0.000423,30]
[357388064,1744035045289,-980.0,0.00042304,120]
[357388065,1744035045299,-980.0,0.00042314,120]
[357388068,1744035045309,-383.58363079,0.00042314,3]
[357388070,1744035045325,-9320.72457576,0.00042314,3]
[357388071,1744035045336,-160.0,0.00042323,30]
[357388073,1744035045346,-370000.0,0.00042324,2]
[357388074,1744035045356,-5499.44678098,0.00042348,7]
[357388077,1744035045367,-389.60576608,0.00042373,10]
[357388078,1744035045378,-512.52789917,0.00042373,10]
[357388081,1744035045389,-500.0,0.00042373,10]
[357388082,1744035045400,-500.0,0.00042373,10]
[357388084,1744035045410,-500.0,0.00042373,10]
[357388087,1744035045420,-500.0,0.00042373,10]
[357388089,1744035045431,-500.0,0.00042373,10]
[357388091,1744035045442,-151.0,0.000424,10]
[357388093,1744035045452,-1291.50792827,0.00042669,28]
[357388095,1744035045463,-1760.4367228,0.00042679,4]
[357388097,1744035045473,-262.6386689,0.00042718,30]
[357388099,1744035045483,-153.0,0.00042718,30]
[357388101,1744035045494,-153.0,0.00042718,30]
[357388104,1744035045504,-153.0,0.00042718,30]
[357388105,1744035045513,-436.55833228,0.00042728,17]
[357388107,1744035045522,-1165.09057197,0.0004279,3]
[357388109,1744035045532,-1400.0,0.000428,7]
[357388112,1744035045542,-151.0,0.000428,14]
[357388114,1744035045552,-719.959261,0.00042966,30]
[357388116,1744035045561,-359.9796305,0.00042981,30]
[357388118,1744035045579,-359.9796305,0.00042981,30]
[357388121,1744035045589,-359.9796305,0.00042981,30]
[357388123,1744035045599,-359.9796305,0.00042981,30]
[357388124,1744035045609,-359.9796305,0.00042981,30]
[357388126,1744035045618,-359.9796305,0.00042981,30]
[357388128,1744035045629,-359.9796305,0.00042981,30]
[357388130,1744035045639,-512.0,0.00043,120]
[357388132,1744035045651,-1000.0,0.00043,120]
[357388134,1744035045663,-500.0,0.00043,120]
[357388136,1744035045673,-330.66,0.00043,120]
[357388138,1744035045682,-156.070749,0.00043005,31]
[357388141,1744035045692,-174.956538,0.00043005,31]
[357388143,1744035045702,-151.0,0.000432,20]
[357388146,1744035045712,-564.0809511,0.00043237,30]
[357388148,1744035045722,-1127.9539451,0.00043237,30]
[357388150,1744035045733,-564.0809511,0.00043237,30]
[357388153,1744035045743,-564.0809511,0.00043237,30]
[357388156,1744035045753,-564.0809511,0.00043237,30]
[357388159,1744035045763,-200.0,0.0004326,65]
[357388161,1744035045773,-436.55833228,0.00043348,17]
[357388164,1744035045783,-160.0,0.00043388,2]
[357388167,1744035045793,-783.73948285,0.00043388,2]
[357388169,1744035045802,-419.36665037,0.00043388,2]
[357388171,1744035045812,-151.0,0.000435,17]
[357388173,1744035045827,-1000.0,0.000435,43]
[357388175,1744035045837,-2330.18114394,0.0004355,3]
[357388177,1744035045847,-2330.18114394,0.0004355,3]
[357388179,1744035045857,-160.0,0.00043559,30]
[357388180,1744035045867,-20468.22697424,0.0004356,3]
[357388182,1744035045877,-73017.32643692,0.0004356,2]
[357388184,1744035045887,-21088.04727748,0.0004356,2]
[357388190,1744035046401,-2742.77701098,0.0004356,2]
[357388191,1744035046413,-11467.92656138,0.0004356,2]
[357388192,1744035046425,-2883.19999892,0.0004356,2]
[357388193,1744035046437,-1896.0,0.0004356,2]
[357388194,1744035046472,-401.0,0.0003914,2]
[357388195,1744035046483,-20429.20147946,0.0004356,2]
[357388196,1744035046493,-21257.5906478,0.0004356,2]
[357388197,1744035046506,-3881.2491524,0.0004356,2]
[357388198,1744035046516,-118.7508476,0.0004356,120]
[357388199,1744035046529,-32.2491524,0.0004356,120]
[357388200,1744035046539,-157.053001,0.0004356,120]
[357388201,1744035046550,-151.0,0.0004356,120]
[357388202,1744035046561,-151.0,0.0004356,120]
[357388203,1744035046575,-9.12071003,0.0004356,120]
[357388204,1744035046587,-141.87928997,0.0004356,120]
[357388205,1744035046597,-151.0,0.0004356,120]
[357388206,1744035046607,-151.0,0.0004356,120]
[357388207,1744035046617,-342.71071003,0.0004356,120]
[357388208,1744035046634,-363.64481097,0.0004356,120]
[357388209,1744035046644,-706.355521,0.0004356,120]
[357388210,1744035046654,-42.84066803,0.0004356,120]
[357388211,1744035047230,-108.15933197,0.0004356,120]
[357388212,1744035047253,-84.96392965,0.0004356,120]
[357388214,1744035059374,193.12326162,0.0003,10]
[357388215,1744035113278,-160.0,0.00028,3]
[357388216,1744035166758,-186.32,0.00027,3]
[357388217,1744035177471,346.32,0.0003,10]
[357388220,1744035579014,-199.12728908,0.00027,3]
[357388221,1744035588694,-151.0,0.000382,31]
[357388222,1744035591600,-193.12326162,0.00027,3]
[357388223,1744035592730,151.0,0.0003,10]
[357388224,1744035604667,-163.5917213,0.00027,3]
[357388225,1744035605778,-41.57721085,0.00027,3]
[357388226,1744035605809,-122.01451045,0.00034999,2]
[357388227,1744035608003,193.12326162,0.0003,10]
[357388228,1744035624041,163.5917213,0.0003,10]
[357388240,1744035891363,5000.0,0.0003,10]
[357388358,1744036232196,-900.0,0.00025469,3]
[357388360,1744036232208,-500.0,0.00027397,5]
[357388362,1744036232221,-1000.0,0.00032877,5]
[357388364,1744036232231,-400.0,0.00032899,2]
[357388366,1744036232243,-4943.07771875,0.000329,2]
[357388368,1744036232254,-884.41548921,0.000329,10]
[357388370,1744036232266,-228.99976135,0.00033,120]
[357388373,1744036232277,-250.0,0.00033407,2]
[357388376,1744036232289,-884.41548903,0.00033624,11]
[357388378,1744036232299,-303.29560844,0.0003388,2]
[357388380,1744036232310,-10000.0,0.00034325,2]
[357388382,1744036232320,-884.41548903,0.00034348,11]
[357388384,1744036232331,-257.90618609,0.00034404,2]
[357388387,1744036232341,-325.590079,0.00034749,2]
[357388389,1744036232351,-183.368107,0.00034767,120]
[357388391,1744036232361,-9927.89154755,0.00035,2]
[357388393,1744036232371,-884.41548903,0.00035072,12]
[357388395,1744036232381,-560.0,0.00035352,2]
[357388397,1744036232391,-884.41548903,0.00035797,12]
[357388399,1744036232402,-415.948591,0.0003589,2]
[357388401,1744036232413,-11653.81998484,0.0003589,2]
[357388403,1744036232426,-428.0601985,0.0003589,2]
[357388515,1744036238058,-457.16237828,0.0003589,2]
[357388517,1744036238068,-500.0,0.0003652,15]
[357388519,1744036238078,-53.07013674,0.0003652,15]
[357388521,1744036238090,-149.91686326,0.0003652,15]
[357388522,1744036238100,-624.92819811,0.0003652,15]
[357388524,1744036238112,-473.98693863,0.0003652,15]
[357388527,1744036238126,-26.01306137,0.0003652,15]
[357388529,1744036238136,-500.0,0.0003652,15]
[357388531,1744036238146,-500.0,0.0003652,15]
[357388533,1744036238156,-500.0,0.0003652,15]
[357388534,1744036238166,-207.87286725,0.0003652,15]
[357388536,1744036238176,-500.0,0.0003652,15]
[357388538,1744036238187,-500.0,0.0003652,15]
[357388540,1744036238201,-500.0,0.0003652,15]
[357388542,1744036238211,-500.0,0.0003652,15]
[357388545,1744036238228,-500.0,0.0003652,15]
[357388547,1744036238241,-500.0,0.0003652,15]
[357388549,1744036238252,-495.05508981,0.0003652,15]
[357388551,1744036238263,-500.0,0.0003652,15]
[357388554,1744036238273,-500.0,0.0003652,15]
[357388556,1744036238283,-500.0,0.0003652,15]
[357388558,1744036238294,-500.0,0.0003652,15]
[357388560,1744036238304,-500.0,0.0003652,15]
[357388562,1744036238315,-500.0,0.0003652,15]
[357388564,1744036238325,-500.0,0.0003652,15]
[357388566,1744036238335,-500.0,0.0003652,15]
[357388568,1744036238346,-500.0,0.0003652,15]
[357388570,1744036238356,-500.0,0.0003652,15]
[357388572,1744036238366,-500.0,0.0003652,15]
[357388574,1744036238376,-500.0,0.0003652,15]
[357388576,1744036238386,-500.0,0.0003652,15]
[357388578,1744036238396,-500.0,0.0003652,15]
[357388580,1744036238407,-500.0,0.0003652,15]
[357388582,1744036238417,-500.0,0.0003652,15]
[357388584,1744036238427,-500.0,0.0003652,15]
[357388586,1744036238437,-500.0,0.0003652,15]
[357388588,1744036238453,-500.0,0.0003652,15]
[357388591,1744036238463,-500.0,0.0003652,15]
[357388593,1744036238474,-500.0,0.0003652,15]
[357388595,1744036238484,-500.0,0.0003652,15]
[357388597,1744036238494,-500.0,0.0003652,15]
[357388599,1744036238504,-500.0,0.0003652,15]
[357388601,1744036238515,-500.0,0.0003652,15]
[357388603,1744036238525,-500.0,0.0003652,15]
[357388605,1744036238535,-500.0,0.0003652,15]
[357388607,1744036238545,-500.0,0.0003652,15]
[357388609,1744036238555,-500.0,0.0003652,15]
[357388610,1744036238565,-500.0,0.0003652,15]
[357388612,1744036238575,-500.0,0.0003652,15]
[357388615,1744036238585,-500.0,0.0003652,15]
[357388616,1744036238595,-500.0,0.0003652,15]
[357388617,1744036238606,-500.0,0.0003652,15]
[357388618,1744036238617,-500.0,0.0003652,15]
[357388619,1744036238627,-500.0,0.0003652,15]
[357388620,1744036238638,-500.0,0.0003652,15]
[357388621,1744036238648,-297.33504656,0.0003652,15]
[357388622,1744036238676,-202.66495344,0.0003652,15]
[357388623,1744036238687,-325.98,0.0003652,15]
[357388624,1744036238704,-500.0,0.0003652,15]
[357388625,1744036238715,-500.0,0.0003652,15]
[357388626,1744036238726,-500.0,0.0003652,15]
[357388627,1744036238737,-500.0,0.0003652,15]